[Event "Titled Tuesday Blitz September 21 2021"]
[White "Jain, Naveen"]
[Black "Wagner, Dennis"]
[WhiteFideId "5003970"]
[BlackFideId "24650684"]
[WhiteElo "2036"]
[BlackElo "2355"]
[Result "0-1"]
[Round "02"]
[TimeControl "180+1"]
[Date "2021.09.21"]
[WhiteClock "0:00:03"]
[BlackClock "0:00:08"]

1. c4 {[%clk 0:03:00]}  c5 {[%clk 0:02:59]} 2. g3 {[%clk 0:03:00]}  g6 {[%clk 0:02:58]} 3. Bg2 {[%clk 0:03:00]}  Bg7 {[%clk 0:02:59]} 4. Nc3 {[%clk 0:03:01]}  Nc6 {[%clk 0:02:58]} 5. a3 {[%clk 0:03:00]}  Nf6 {[%clk 0:02:50]} 6. Rb1 {[%clk 0:02:59]}  a6 {[%clk 0:02:41]} 7. b4 {[%clk 0:02:58]}  cxb4 {[%clk 0:02:41]} 8. axb4 {[%clk 0:02:59]}  b5 {[%clk 0:02:32]} 9. cxb5 {[%clk 0:02:53]}  axb5 {[%clk 0:02:33]} 10. Nxb5 {[%clk 0:02:53]}  Rb8 {[%clk 0:02:33]} 11. Nc3 {[%clk 0:02:48]}  Rxb4 {[%clk 0:02:21]} 12. Rxb4 {[%clk 0:02:46]}  Nxb4 {[%clk 0:02:22]} 13. Qb3 {[%clk 0:02:33]}  Qa5 {[%clk 0:02:16]} 14. Nf3 {[%clk 0:02:27]}  O-O {[%clk 0:02:14]} 15. O-O {[%clk 0:02:26]}  Ba6 {[%clk 0:02:07]} 16. Ba3 {[%clk 0:02:25]}  Nc6 {[%clk 0:01:54]} 17. Rb1 {[%clk 0:02:11]}  h6 {[%clk 0:01:49]} 18. Bb4 {[%clk 0:01:01]}  Nxb4 {[%clk 0:01:46]} 19. Qxb4 {[%clk 0:01:02]}  Qxb4 {[%clk 0:01:42]} 20. Rxb4 {[%clk 0:01:03]}  Rc8 {[%clk 0:01:35]} 21. Nd4 {[%clk 0:00:53]}  Ng4 {[%clk 0:01:12]} 22. h3 {[%clk 0:00:40]}  Ne5 {[%clk 0:01:10]} 23. Nd5 {[%clk 0:00:34]}  Kf8 {[%clk 0:01:00]} 24. f4 {[%clk 0:00:28]}  Nc4 {[%clk 0:00:58]} 25. Nf3 {[%clk 0:00:20]}  e6 {[%clk 0:00:55]} 26. Nb6 {[%clk 0:00:16]}  Nxb6 {[%clk 0:00:54]} 27. Rxb6 {[%clk 0:00:16]}  Bxe2 {[%clk 0:00:55]} 28. Kf2 {[%clk 0:00:15]}  Bxf3 {[%clk 0:00:46]} 29. Kxf3 {[%clk 0:00:15]}  Rc2 {[%clk 0:00:43]} 30. Ke2 {[%clk 0:00:11]}  Ke7 {[%clk 0:00:41]} 31. Rb7 {[%clk 0:00:09]}  Bc3 {[%clk 0:00:36]} 32. Be4 {[%clk 0:00:09]}  Rxd2+ {[%clk 0:00:36]} 33. Ke3 {[%clk 0:00:09]}  Rd1 {[%clk 0:00:31]} 34. Bc6 {[%clk 0:00:07]}  Rd6 {[%clk 0:00:27]} 35. Bf3 {[%clk 0:00:07]}  h5 {[%clk 0:00:27]} 36. g4 {[%clk 0:00:06]}  h4 {[%clk 0:00:27]} 37. f5 {[%clk 0:00:05]}  gxf5 {[%clk 0:00:26]} 38. gxf5 {[%clk 0:00:05]}  Kf6 {[%clk 0:00:22]} 39. Rb8 {[%clk 0:00:06]}  Kxf5 {[%clk 0:00:21]} 40. Rg8 {[%clk 0:00:06]}  Bd4+ {[%clk 0:00:19]} 41. Ke2 {[%clk 0:00:06]}  Bf6 {[%clk 0:00:17]} 42. Rg4 {[%clk 0:00:06]}  Rd4 {[%clk 0:00:11]} 43. Rg8 {[%clk 0:00:05]}  d5 {[%clk 0:00:11]} 44. Re8 {[%clk 0:00:03]}  Bg5 {[%clk 0:00:11]} 45. Rf8 {[%clk 0:00:03]}  Rd2+ {[%clk 0:00:11]} 46. Ke1 {[%clk 0:00:04]}  Kf6 {[%clk 0:00:11]} 47. Bh5 {[%clk 0:00:04]}  Rh2 {[%clk 0:00:10]} 48. Rxf7+ {[%clk 0:00:04]}  Ke5 {[%clk 0:00:10]} 49. Bg4 {[%clk 0:00:04]}  Bf4 {[%clk 0:00:08]} 50. Re7 {[%clk 0:00:04]}  Bg3+ {[%clk 0:00:08]} 51. Kf1 {[%clk 0:00:04]}  Rf2+ {[%clk 0:00:07]} 52. Kg1 {[%clk 0:00:04]}  Rf6 {[%clk 0:00:08]} 53. Re8 {[%clk 0:00:04]}  d4 {[%clk 0:00:08]} 54. Rd8 {[%clk 0:00:03]}  Ke4 {[%clk 0:00:08]} 55. Kg2 {[%clk 0:00:03]}  e5 {[%clk 0:00:08]} 56. Bf3+ {[%clk 0:00:03]}  Rxf3 {[%clk 0:00:08]} 0-1


[Site "https://www.chess.com"]

[Event "Titled Tuesday Blitz September 21 2021"]
[White "Janaszak, Dawid"]
[Black "Goltsev, Dmitry"]
[WhiteFideId "1119206"]
[BlackFideId "24176710"]
[WhiteElo "2283"]
[BlackElo "2334"]
[Result "0-1"]
[Round "02"]
[TimeControl "180+1"]
[Date "2021.09.21"]
[WhiteClock "0:00:12"]
[BlackClock "0:00:08"]

1. e4 {[%clk 0:03:00]}  c5 {[%clk 0:02:57]} 2. Nc3 {[%clk 0:03:00]}  e6 {[%clk 0:02:56]} 3. f4 {[%clk 0:02:58]}  Nc6 {[%clk 0:02:56]} 4. Nf3 {[%clk 0:02:56]}  a6 {[%clk 0:02:53]} 5. d4 {[%clk 0:02:42]}  cxd4 {[%clk 0:02:54]} 6. Nxd4 {[%clk 0:02:43]}  Qc7 {[%clk 0:02:53]} 7. Be3 {[%clk 0:02:38]}  Bb4 {[%clk 0:02:51]} 8. Qd3 {[%clk 0:02:25]}  b5 {[%clk 0:02:35]} 9. Be2 {[%clk 0:02:19]}  Bb7 {[%clk 0:02:27]} 10. O-O {[%clk 0:02:19]}  Nge7 {[%clk 0:02:18]} 11. Rad1 {[%clk 0:02:12]}  O-O {[%clk 0:02:06]} 12. Bf3 {[%clk 0:02:07]}  d6 {[%clk 0:02:03]} 13. Kh1 {[%clk 0:02:02]}  Rfd8 {[%clk 0:02:02]} 14. Nb3 {[%clk 0:01:58]}  Na5 {[%clk 0:01:53]} 15. Ne2 {[%clk 0:01:30]}  Nc4 {[%clk 0:01:44]} 16. Bc1 {[%clk 0:01:25]}  d5 {[%clk 0:01:17]} 17. e5 {[%clk 0:01:22]}  Ng6 {[%clk 0:01:17]} 18. c3 {[%clk 0:01:19]}  Be7 {[%clk 0:01:17]} 19. Nbd4 {[%clk 0:01:15]}  Rac8 {[%clk 0:01:15]} 20. Bg4 {[%clk 0:01:10]}  b4 {[%clk 0:01:12]} 21. cxb4 {[%clk 0:00:55]}  Bxb4 {[%clk 0:01:10]} 22. Nxe6 {[%clk 0:00:54]}  fxe6 {[%clk 0:01:10]} 23. Bxe6+ {[%clk 0:00:55]}  Kh8 {[%clk 0:01:10]} 24. Bxc8 {[%clk 0:00:55]}  Rxc8 {[%clk 0:01:07]} 25. Nd4 {[%clk 0:00:53]}  a5 {[%clk 0:00:54]} 26. b3 {[%clk 0:00:43]}  Nb6 {[%clk 0:00:40]} 27. Bb2 {[%clk 0:00:43]}  Nd7 {[%clk 0:00:29]} 28. Rc1 {[%clk 0:00:39]}  Nc5 {[%clk 0:00:29]} 29. Qh3 {[%clk 0:00:36]}  Ba6 {[%clk 0:00:19]} 30. Rfd1 {[%clk 0:00:35]}  Qd8 {[%clk 0:00:11]} 31. f5 {[%clk 0:00:28]}  Ne4 {[%clk 0:00:10]} 32. Qe3 {[%clk 0:00:17]}  Nxe5 {[%clk 0:00:09]} 33. Ne6 {[%clk 0:00:18]}  Qd6 {[%clk 0:00:07]} 34. Rxc8+ {[%clk 0:00:18]}  Bxc8 {[%clk 0:00:08]} 35. Qd4 {[%clk 0:00:15]}  Bc5 {[%clk 0:00:07]} 36. Qxd5 {[%clk 0:00:11]}  Nf2+ {[%clk 0:00:07]} 37. Kg1 {[%clk 0:00:12]}  Nxd1+ {[%clk 0:00:08]} 38. Kf1 {[%clk 0:00:12]}  Qxd5 {[%clk 0:00:08]} 0-1


[Site "https://www.chess.com"]

[Event "Titled Tuesday Blitz September 21 2021"]
[White "Kislov, Oleg"]
[Black "Kobalia, Mikhail"]
[WhiteFideId "13503774"]
[BlackFideId "4119150"]
[WhiteElo "2252"]
[BlackElo "2626"]
[Result "1-0"]
[Round "02"]
[TimeControl "180+1"]
[Date "2021.09.21"]
[WhiteClock "0:01:02"]
[BlackClock "0:01:59"]

1. d4 {[%clk 0:03:00]}  Nf6 {[%clk 0:02:58]} 2. Nc3 {[%clk 0:03:00]}  g6 {[%clk 0:02:59]} 3. e4 {[%clk 0:03:00]}  d6 {[%clk 0:02:59]} 4. f3 {[%clk 0:03:00]}  Bg7 {[%clk 0:02:58]} 5. Be3 {[%clk 0:03:00]}  Na6 {[%clk 0:02:55]} 6. Qd2 {[%clk 0:02:57]}  O-O {[%clk 0:02:54]} 7. Bh6 {[%clk 0:02:52]}  c5 {[%clk 0:02:53]} 8. d5 {[%clk 0:02:52]}  Nc7 {[%clk 0:02:53]} 9. h4 {[%clk 0:02:52]}  b5 {[%clk 0:02:52]} 10. h5 {[%clk 0:02:52]}  b4 {[%clk 0:02:50]} 11. Nce2 {[%clk 0:02:47]}  e6 {[%clk 0:02:49]} 12. Bxg7 {[%clk 0:02:42]}  Kxg7 {[%clk 0:02:49]} 13. hxg6 {[%clk 0:02:43]}  fxg6 {[%clk 0:02:49]} 14. Qh6+ {[%clk 0:02:41]}  Kg8 {[%clk 0:02:47]} 15. Nf4 {[%clk 0:02:38]}  Qe7 {[%clk 0:02:46]} 16. dxe6 {[%clk 0:02:35]}  d5 {[%clk 0:02:34]} 17. Nxg6 {[%clk 0:02:06]}  Qg7 {[%clk 0:02:26]} 18. Qxg7+ {[%clk 0:02:03]}  Kxg7 {[%clk 0:02:26]} 19. Nxf8 {[%clk 0:02:03]}  Kxf8 {[%clk 0:02:27]} 20. e5 {[%clk 0:02:01]}  Ng8 {[%clk 0:02:25]} 21. Rxh7 {[%clk 0:01:58]}  Nxe6 {[%clk 0:02:25]} 22. O-O-O {[%clk 0:01:56]}  Nd4 {[%clk 0:02:25]} 23. Ne2 {[%clk 0:01:42]}  Bf5 {[%clk 0:02:21]} 24. Rc7 {[%clk 0:01:40]}  Ne6 {[%clk 0:02:19]} 25. Rb7 {[%clk 0:01:36]}  Ne7 {[%clk 0:02:16]} 26. g4 {[%clk 0:01:33]}  Bh7 {[%clk 0:02:14]} 27. f4 {[%clk 0:01:33]}  Nd8 {[%clk 0:02:10]} 28. Rd7 {[%clk 0:01:27]}  Ke8 {[%clk 0:02:09]} 29. Rd6 {[%clk 0:01:21]}  Nf7 {[%clk 0:02:04]} 30. Rf6 {[%clk 0:01:13]}  Be4 {[%clk 0:02:02]} 31. Ng3 {[%clk 0:01:09]}  Bf3 {[%clk 0:02:02]} 32. Be2 {[%clk 0:01:06]}  Bxe2 {[%clk 0:02:01]} 33. Nxe2 {[%clk 0:01:06]}  d4 {[%clk 0:02:02]} 34. g5 {[%clk 0:01:06]}  Nd5 {[%clk 0:02:02]} 35. Rc6 {[%clk 0:01:03]}  Ne3 {[%clk 0:02:01]} 36. Rh1 {[%clk 0:01:03]}  Kd7 {[%clk 0:01:59]} 37. Rxc5 {[%clk 0:01:02]} 1-0


[Site "https://www.chess.com"]

[Event "Titled Tuesday Blitz September 21 2021"]
[White "Korchmar, Vasiliy"]
[Black "Hernandez Jimenez, Alexander Andres"]
[WhiteFideId "24131750"]
[BlackFideId "3900452"]
[WhiteElo "2370"]
[BlackElo "2110"]
[Result "1-0"]
[Round "02"]
[TimeControl "180+1"]
[Date "2021.09.21"]
[WhiteClock "0:00:20"]
[BlackClock "0:00:03"]

1. e4 {[%clk 0:03:00]}  c5 {[%clk 0:02:59]} 2. Nf3 {[%clk 0:03:00]}  d6 {[%clk 0:03:00]} 3. d4 {[%clk 0:03:01]}  cxd4 {[%clk 0:03:00]} 4. Nxd4 {[%clk 0:03:01]}  Nf6 {[%clk 0:03:01]} 5. Nc3 {[%clk 0:03:02]}  a6 {[%clk 0:03:01]} 6. Be2 {[%clk 0:03:02]}  e5 {[%clk 0:03:01]} 7. Nb3 {[%clk 0:03:03]}  Be6 {[%clk 0:03:01]} 8. O-O {[%clk 0:03:02]}  Nbd7 {[%clk 0:03:01]} 9. f4 {[%clk 0:02:49]}  exf4 {[%clk 0:03:01]} 10. Bxf4 {[%clk 0:02:50]}  Ne5 {[%clk 0:02:58]} 11. Qe1 {[%clk 0:02:46]}  Be7 {[%clk 0:02:50]} 12. Qg3 {[%clk 0:02:46]}  Ng6 {[%clk 0:02:50]} 13. Bg5 {[%clk 0:02:43]}  Nh5 {[%clk 0:02:33]} 14. Bxh5 {[%clk 0:02:37]}  Bxg5 {[%clk 0:02:33]} 15. Kh1 {[%clk 0:02:38]}  O-O {[%clk 0:02:32]} 16. Nd4 {[%clk 0:02:37]}  Bh4 {[%clk 0:02:16]} 17. Qe3 {[%clk 0:02:28]}  Qg5 {[%clk 0:02:01]} 18. Qxg5 {[%clk 0:02:03]}  Bxg5 {[%clk 0:02:00]} 19. Nxe6 {[%clk 0:01:56]}  fxe6 {[%clk 0:01:59]} 20. Bxg6 {[%clk 0:01:55]}  hxg6 {[%clk 0:01:58]} 21. Rad1 {[%clk 0:01:47]}  Bf4 {[%clk 0:01:45]} 22. Ne2 {[%clk 0:01:43]}  Be5 {[%clk 0:01:45]} 23. c3 {[%clk 0:01:43]}  Rxf1+ {[%clk 0:01:39]} 24. Rxf1 {[%clk 0:01:43]}  Rc8 {[%clk 0:01:33]} 25. Ng1 {[%clk 0:01:38]}  Rc4 {[%clk 0:01:30]} 26. Re1 {[%clk 0:01:38]}  b5 {[%clk 0:01:23]} 27. Nf3 {[%clk 0:01:39]}  Bf6 {[%clk 0:01:12]} 28. e5 {[%clk 0:01:35]}  dxe5 {[%clk 0:01:08]} 29. Nxe5 {[%clk 0:01:36]}  Bxe5 {[%clk 0:00:48]} 30. Rxe5 {[%clk 0:01:37]}  Kf7 {[%clk 0:00:48]} 31. a3 {[%clk 0:01:37]}  Kf6 {[%clk 0:00:46]} 32. Re3 {[%clk 0:01:31]}  e5 {[%clk 0:00:44]} 33. Kg1 {[%clk 0:01:31]}  a5 {[%clk 0:00:43]} 34. Kf2 {[%clk 0:01:22]}  e4 {[%clk 0:00:42]} 35. Re2 {[%clk 0:01:14]}  b4 {[%clk 0:00:41]} 36. axb4 {[%clk 0:00:31]}  axb4 {[%clk 0:00:41]} 37. Rc2 {[%clk 0:00:31]}  Ke5 {[%clk 0:00:25]} 38. Ke3 {[%clk 0:00:31]}  g5 {[%clk 0:00:22]} 39. h3 {[%clk 0:00:27]}  g6 {[%clk 0:00:19]} 40. Rc1 {[%clk 0:00:24]}  Kd5 {[%clk 0:00:08]} 41. Rd1+ {[%clk 0:00:22]}  Ke5 {[%clk 0:00:08]} 42. Rd4 {[%clk 0:00:20]}  Rxd4 {[%clk 0:00:03]} 43. cxd4+ {[%clk 0:00:21]}  Kd5 {[%clk 0:00:03]} 44. b3 {[%clk 0:00:20]}  g4 {[%clk 0:00:03]} 45. hxg4 {[%clk 0:00:20]}  g5 {[%clk 0:00:03]} 46. g3 {[%clk 0:00:20]} 1-0


[Site "https://www.chess.com"]

[Event "Titled Tuesday Blitz September 21 2021"]
[White "Lauridsen, Jesper Morch"]
[Black "Krysa, Leandro"]
[WhiteFideId "1401890"]
[BlackFideId "116807"]
[WhiteElo "2267"]
[BlackElo "2490"]
[Result "0-1"]
[Round "02"]
[TimeControl "180+1"]
[Date "2021.09.21"]
[WhiteClock "0:00:17"]
[BlackClock "0:00:14"]

1. e4 {[%clk 0:03:00]}  c5 {[%clk 0:02:59]} 2. Nf3 {[%clk 0:03:00]}  Nc6 {[%clk 0:02:59]} 3. d4 {[%clk 0:03:00]}  cxd4 {[%clk 0:03:00]} 4. Nxd4 {[%clk 0:03:00]}  g6 {[%clk 0:03:01]} 5. c4 {[%clk 0:02:59]}  Nf6 {[%clk 0:03:00]} 6. Nc3 {[%clk 0:02:56]}  d6 {[%clk 0:03:00]} 7. f3 {[%clk 0:02:54]}  Nxd4 {[%clk 0:02:58]} 8. Qxd4 {[%clk 0:02:54]}  Bg7 {[%clk 0:02:58]} 9. Qf2 {[%clk 0:02:54]}  O-O {[%clk 0:02:56]} 10. Be3 {[%clk 0:02:53]}  a5 {[%clk 0:02:55]} 11. Be2 {[%clk 0:02:53]}  a4 {[%clk 0:02:55]} 12. a3 {[%clk 0:02:49]}  Be6 {[%clk 0:02:51]} 13. Rc1 {[%clk 0:02:40]}  Nd7 {[%clk 0:02:43]} 14. O-O {[%clk 0:02:38]}  Nc5 {[%clk 0:02:39]} 15. Rfd1 {[%clk 0:02:31]}  Qa5 {[%clk 0:02:36]} 16. f4 {[%clk 0:02:04]}  Bxc3 {[%clk 0:02:25]} 17. Bxc5 {[%clk 0:02:04]}  Qxc5 {[%clk 0:01:43]} 18. Qxc5 {[%clk 0:02:01]}  dxc5 {[%clk 0:01:41]} 19. Rxc3 {[%clk 0:01:59]}  Rfd8 {[%clk 0:01:37]} 20. Rcc1 {[%clk 0:01:44]}  Bd7 {[%clk 0:01:21]} 21. Kf2 {[%clk 0:01:23]}  Bc6 {[%clk 0:01:20]} 22. Ke3 {[%clk 0:01:20]}  f6 {[%clk 0:01:19]} 23. g3 {[%clk 0:01:10]}  e5 {[%clk 0:01:16]} 24. Rxd8+ {[%clk 0:01:07]}  Rxd8 {[%clk 0:01:14]} 25. Rd1 {[%clk 0:01:07]}  Ra8 {[%clk 0:01:05]} 26. Bg4 {[%clk 0:01:05]}  exf4+ {[%clk 0:00:48]} 27. gxf4 {[%clk 0:01:04]}  Re8 {[%clk 0:00:48]} 28. Bf3 {[%clk 0:00:56]}  Bxe4 {[%clk 0:00:46]} 29. Bxe4 {[%clk 0:00:56]}  f5 {[%clk 0:00:47]} 30. Rd7 {[%clk 0:00:52]}  Rxe4+ {[%clk 0:00:45]} 31. Kd3 {[%clk 0:00:51]}  Rxf4 {[%clk 0:00:42]} 32. Rxb7 {[%clk 0:00:51]}  Rd4+ {[%clk 0:00:33]} 33. Kc3 {[%clk 0:00:50]}  Rh4 {[%clk 0:00:33]} 34. b4 {[%clk 0:00:34]}  Rh3+ {[%clk 0:00:19]} 35. Kb2 {[%clk 0:00:33]}  Rxh2+ {[%clk 0:00:19]} 36. Kb1 {[%clk 0:00:31]}  Kf8 {[%clk 0:00:17]} 37. bxc5 {[%clk 0:00:30]}  Ke8 {[%clk 0:00:17]} 38. c6 {[%clk 0:00:29]}  Kd8 {[%clk 0:00:17]} 39. Ra7 {[%clk 0:00:27]}  Kc8 {[%clk 0:00:15]} 40. Rxa4 {[%clk 0:00:27]}  f4 {[%clk 0:00:15]} 41. Ra7 {[%clk 0:00:25]}  f3 {[%clk 0:00:14]} 42. Rf7 {[%clk 0:00:24]}  f2 {[%clk 0:00:14]} 43. Rf8+ {[%clk 0:00:17]}  Kc7 {[%clk 0:00:14]} 44. Rf7+ {[%clk 0:00:17]}  Kxc6 {[%clk 0:00:14]} 0-1


[Site "https://www.chess.com"]

[Event "Titled Tuesday Blitz September 21 2021"]
[White "Madaminov, Mukhiddin"]
[Black "Dudognon, Thibault"]
[WhiteFideId "14210703"]
[BlackFideId "20675569"]
[WhiteElo "1855"]
[BlackElo "2175"]
[Result "1-0"]
[Round "02"]
[TimeControl "180+1"]
[Date "2021.09.21"]
[WhiteClock "0:00:33"]
[BlackClock "0:00:17"]

1. e4 {[%clk 0:03:00]}  c6 {[%clk 0:03:00]} 2. Nf3 {[%clk 0:03:01]}  d5 {[%clk 0:03:00]} 3. Nc3 {[%clk 0:03:02]}  dxe4 {[%clk 0:02:58]} 4. Nxe4 {[%clk 0:03:03]}  Nf6 {[%clk 0:02:58]} 5. Nxf6+ {[%clk 0:03:03]}  exf6 {[%clk 0:02:59]} 6. Bc4 {[%clk 0:03:04]}  Bd6 {[%clk 0:02:59]} 7. Qe2+ {[%clk 0:03:04]}  Be7 {[%clk 0:02:59]} 8. O-O {[%clk 0:03:04]}  O-O {[%clk 0:02:58]} 9. d4 {[%clk 0:03:05]}  Bd6 {[%clk 0:02:56]} 10. h3 {[%clk 0:03:05]}  Re8 {[%clk 0:02:53]} 11. Qd3 {[%clk 0:03:05]}  a5 {[%clk 0:02:49]} 12. a4 {[%clk 0:03:02]}  Na6 {[%clk 0:02:47]} 13. Bxa6 {[%clk 0:02:58]}  Rxa6 {[%clk 0:02:47]} 14. Bd2 {[%clk 0:02:59]}  Be6 {[%clk 0:02:43]} 15. Rfe1 {[%clk 0:02:57]}  Ra8 {[%clk 0:02:42]} 16. b3 {[%clk 0:02:56]}  b6 {[%clk 0:02:41]} 17. Rad1 {[%clk 0:02:55]}  c5 {[%clk 0:02:38]} 18. d5 {[%clk 0:02:51]}  Bd7 {[%clk 0:02:36]} 19. Rxe8+ {[%clk 0:02:51]}  Bxe8 {[%clk 0:02:35]} 20. Re1 {[%clk 0:02:49]}  Ra7 {[%clk 0:02:34]} 21. Nh4 {[%clk 0:02:34]}  Re7 {[%clk 0:02:24]} 22. Rxe7 {[%clk 0:02:31]}  Bxe7 {[%clk 0:02:22]} 23. Nf5 {[%clk 0:02:31]}  g6 {[%clk 0:02:21]} 24. Ne3 {[%clk 0:02:26]}  Bd6 {[%clk 0:02:17]} 25. Nc4 {[%clk 0:02:25]}  f5 {[%clk 0:02:06]} 26. Bc3 {[%clk 0:02:21]}  f6 {[%clk 0:01:18]} 27. Bb2 {[%clk 0:01:31]}  Bf7 {[%clk 0:01:16]} 28. Ne3 {[%clk 0:01:32]}  Kg7 {[%clk 0:01:10]} 29. c4 {[%clk 0:01:28]}  Be5 {[%clk 0:01:03]} 30. Bxe5 {[%clk 0:01:23]}  fxe5 {[%clk 0:01:04]} 31. Nf1 {[%clk 0:01:23]}  Qd6 {[%clk 0:01:00]} 32. Nd2 {[%clk 0:01:16]}  e4 {[%clk 0:01:00]} 33. Qe3 {[%clk 0:01:15]}  Qe5 {[%clk 0:00:50]} 34. f3 {[%clk 0:01:14]}  Qa1+ {[%clk 0:00:44]} 35. Kf2 {[%clk 0:01:14]}  exf3 {[%clk 0:00:44]} 36. Nxf3 {[%clk 0:01:15]}  h6 {[%clk 0:00:38]} 37. h4 {[%clk 0:01:00]}  Kf6 {[%clk 0:00:35]} 38. Qxh6 {[%clk 0:00:56]}  Qb2+ {[%clk 0:00:35]} 39. Kg3 {[%clk 0:00:54]}  Qxb3 {[%clk 0:00:36]} 40. Qh8+ {[%clk 0:00:52]}  Ke7 {[%clk 0:00:36]} 41. Qe5+ {[%clk 0:00:51]}  Kd7 {[%clk 0:00:36]} 42. Qf6 {[%clk 0:00:47]}  Be8 {[%clk 0:00:35]} 43. Kh2 {[%clk 0:00:46]}  Qxa4 {[%clk 0:00:25]} 44. Ne5+ {[%clk 0:00:42]}  Kc7 {[%clk 0:00:25]} 45. Qe7+ {[%clk 0:00:41]}  Kb8 {[%clk 0:00:22]} 46. Qd8+ {[%clk 0:00:38]}  Ka7 {[%clk 0:00:21]} 47. Qc7+ {[%clk 0:00:39]}  Ka6 {[%clk 0:00:21]} 48. Qb8 {[%clk 0:00:36]}  b5 {[%clk 0:00:17]} 49. Qa8+ {[%clk 0:00:33]}  Kb6 {[%clk 0:00:17]} 50. Qxe8 {[%clk 0:00:33]} 1-0


[Site "https://www.chess.com"]

[Event "Titled Tuesday Blitz September 21 2021"]
[White "Mischuk, Dmitry"]
[Black "Djokic, Mihailo"]
[WhiteFideId "14118734"]
[BlackFideId "976440"]
[WhiteElo "2369"]
[BlackElo "2008"]
[Result "0-1"]
[Round "02"]
[TimeControl "180+1"]
[Date "2021.09.21"]
[WhiteClock "0:00:05"]
[BlackClock "0:00:11"]

1. e4 {[%clk 0:03:00]}  c5 {[%clk 0:02:58]} 2. Nf3 {[%clk 0:03:01]}  d6 {[%clk 0:02:57]} 3. d4 {[%clk 0:03:00]}  cxd4 {[%clk 0:02:56]} 4. Nxd4 {[%clk 0:03:01]}  Nf6 {[%clk 0:02:56]} 5. Nc3 {[%clk 0:03:01]}  g6 {[%clk 0:02:56]} 6. Be3 {[%clk 0:03:01]}  Bg7 {[%clk 0:02:56]} 7. f3 {[%clk 0:03:01]}  O-O {[%clk 0:02:56]} 8. Qd2 {[%clk 0:03:02]}  Nc6 {[%clk 0:02:56]} 9. O-O-O {[%clk 0:03:02]}  Bd7 {[%clk 0:02:57]} 10. g4 {[%clk 0:03:01]}  Rc8 {[%clk 0:02:57]} 11. h4 {[%clk 0:03:01]}  Ne5 {[%clk 0:02:58]} 12. h5 {[%clk 0:03:01]}  Qa5 {[%clk 0:02:57]} 13. Nb3 {[%clk 0:02:54]}  Qc7 {[%clk 0:02:54]} 14. hxg6 {[%clk 0:02:52]}  fxg6 {[%clk 0:02:34]} 15. Bh6 {[%clk 0:02:37]}  Nxf3 {[%clk 0:02:28]} 16. Qg2 {[%clk 0:02:28]}  Bxh6+ {[%clk 0:02:22]} 17. Rxh6 {[%clk 0:02:29]}  Nxg4 {[%clk 0:02:22]} 18. Be2 {[%clk 0:01:43]}  Nxh6 {[%clk 0:02:11]} 19. Bxf3 {[%clk 0:01:42]}  Be6 {[%clk 0:01:54]} 20. Rh1 {[%clk 0:01:36]}  Qb6 {[%clk 0:01:49]} 21. Nd1 {[%clk 0:01:12]}  Bxb3 {[%clk 0:01:39]} 22. axb3 {[%clk 0:01:09]}  Qxb3 {[%clk 0:01:36]} 23. Rh3 {[%clk 0:01:09]}  Qf7 {[%clk 0:01:28]} 24. e5 {[%clk 0:00:56]}  Qf4+ {[%clk 0:01:27]} 25. Kb1 {[%clk 0:00:56]}  Nf5 {[%clk 0:01:20]} 26. Bd5+ {[%clk 0:00:45]}  Kg7 {[%clk 0:01:20]} 27. exd6 {[%clk 0:00:34]}  Qxd6 {[%clk 0:01:18]} 28. Nc3 {[%clk 0:00:29]}  b6 {[%clk 0:01:10]} 29. Be4 {[%clk 0:00:24]}  Qe5 {[%clk 0:01:05]} 30. Bd3 {[%clk 0:00:21]}  e6 {[%clk 0:00:55]} 31. Ne4 {[%clk 0:00:15]}  h6 {[%clk 0:00:47]} 32. Rh1 {[%clk 0:00:12]}  Ne7 {[%clk 0:00:35]} 33. Qh3 {[%clk 0:00:10]}  Rh8 {[%clk 0:00:33]} 34. Rg1 {[%clk 0:00:08]}  g5 {[%clk 0:00:32]} 35. Ng3 {[%clk 0:00:08]}  Nd5 {[%clk 0:00:25]} 36. Nh5+ {[%clk 0:00:08]}  Kf7 {[%clk 0:00:25]} 37. Qh1 {[%clk 0:00:03]}  Ke7 {[%clk 0:00:25]} 38. Re1 {[%clk 0:00:03]}  Qd4 {[%clk 0:00:21]} 39. Re4 {[%clk 0:00:03]}  Qc5 {[%clk 0:00:18]} 40. Qe1 {[%clk 0:00:03]}  Rc6 {[%clk 0:00:17]} 41. Rc4 {[%clk 0:00:02]}  Qd6 {[%clk 0:00:17]} 42. Re4 {[%clk 0:00:02]}  Rf8 {[%clk 0:00:16]} 43. Ng3 {[%clk 0:00:02]}  Nf4 {[%clk 0:00:15]} 44. Bc4 {[%clk 0:00:02]}  Kd7 {[%clk 0:00:12]} 45. b3 {[%clk 0:00:02]}  Kc7 {[%clk 0:00:12]} 46. Nf1 {[%clk 0:00:02]}  Nd5 {[%clk 0:00:11]} 47. Nd2 {[%clk 0:00:03]}  Nc3+ {[%clk 0:00:12]} 48. Kb2 {[%clk 0:00:02]}  Nxe4 {[%clk 0:00:12]} 49. Nxe4 {[%clk 0:00:03]}  Qe5+ {[%clk 0:00:11]} 50. Ka2 {[%clk 0:00:02]}  Rxc4 {[%clk 0:00:11]} 51. bxc4 {[%clk 0:00:03]}  Rf4 {[%clk 0:00:11]} 52. Qb4 {[%clk 0:00:02]}  Qa5+ {[%clk 0:00:09]} 53. Qxa5 {[%clk 0:00:02]}  bxa5 {[%clk 0:00:10]} 54. Nc5 {[%clk 0:00:02]}  Rxc4 {[%clk 0:00:09]} 55. Nxe6+ {[%clk 0:00:03]}  Kd6 {[%clk 0:00:10]} 56. Ng7 {[%clk 0:00:03]}  Rxc2+ {[%clk 0:00:09]} 57. Kb3 {[%clk 0:00:03]}  Rf2 {[%clk 0:00:10]} 58. Ne8+ {[%clk 0:00:02]}  Ke7 {[%clk 0:00:10]} 59. Nc7 {[%clk 0:00:01]}  Rf5 {[%clk 0:00:09]} 60. Na6 {[%clk 0:00:01]}  g4 {[%clk 0:00:09]} 61. Nb8 {[%clk 0:00:02]}  Kd6 {[%clk 0:00:08]} 62. Na6 {[%clk 0:00:02]}  g3 {[%clk 0:00:08]} 63. Nc5 {[%clk 0:00:03]}  Rxc5 {[%clk 0:00:08]} 64. Ka4 {[%clk 0:00:03]}  g2 {[%clk 0:00:08]} 65. Kb3 {[%clk 0:00:04]}  g1=Q {[%clk 0:00:08]} 66. Ka4 {[%clk 0:00:05]}  Qd4+ {[%clk 0:00:09]} 67. Kb3 {[%clk 0:00:06]}  Rc3+ {[%clk 0:00:09]} 68. Kb2 {[%clk 0:00:04]}  Qd2+ {[%clk 0:00:10]} 69. Kb1 {[%clk 0:00:05]}  Rc1# {[%clk 0:00:11]} 0-1


[Site "https://www.chess.com"]